fUSD/lending_fUSD_20240125
["ID","MTS","AMOUNT","RATE_DAILY","PERIOD"]
[312675519,1706142706159,-500.0,0.00052328,31]
[312675520,1706142706168,-500.0,0.00052328,31]
[312675521,1706142706177,-500.0,0.00052328,31]
[312675522,1706142706186,-1012.49,0.00052328,31]
[312675523,1706142706196,-500.0,0.00052328,31]
[312675524,1706142706206,-500.0,0.00052328,31]
[312675525,1706142706216,-500.0,0.00052328,31]
[312675526,1706142706226,-500.0,0.00052328,31]
[312675527,1706142706235,-799.68,0.00052328,31]
[312675528,1706142706244,-500.0,0.00052328,31]
[312675529,1706142706254,-239.9070563,0.00052328,31]
[312675530,1706142706263,-500.0,0.00052328,31]
[312675531,1706142706272,-500.0,0.00052328,31]
[312675532,1706142706281,-543.8,0.00052328,31]
[312675533,1706142706291,-500.0,0.00052328,31]
[312675534,1706142706301,-986.07,0.00052328,31]
[312675535,1706142706310,-500.0,0.00052328,31]
[312675536,1706142706319,-500.0,0.00052328,31]
[312675537,1706142706329,-500.0,0.00052328,31]
[312675538,1706142706339,-500.0,0.00052328,31]
[312675539,1706142706349,-1153.66,0.00052328,31]
[312675540,1706142706358,-516.65,0.00052328,31]
[312675541,1706142706367,-500.0,0.00052328,31]
[312675542,1706142706377,-1241.77,0.00052328,31]
[312675543,1706142706387,-500.0,0.00052328,31]
[312675544,1706142706396,-500.0,0.00052328,31]
[312675545,1706142706406,-500.0,0.00052328,31]
[312675546,1706142706415,-500.0,0.00052328,31]
[312675547,1706142706424,-500.0,0.00052328,31]
[312675548,1706142706433,-500.0,0.00052328,31]
[312675549,1706142706443,-500.0,0.00052328,31]
[312675550,1706142706452,-653.39,0.00052328,31]
[312675551,1706142706461,-500.0,0.00052328,31]
[312675552,1706142706471,-836.07,0.00052328,31]
[312675553,1706142706481,-756.21,0.00052328,31]
[312675554,1706142706490,-515.25,0.00052328,31]
[312675555,1706142706499,-1013.31,0.00052328,31]
[312675556,1706142706509,-500.0,0.00052328,31]
[312675557,1706142706519,-616.32,0.00052328,31]
[312675558,1706142706528,-528.69,0.00052328,31]
[312675559,1706142706538,-500.0,0.00052328,31]
[312675560,1706142706547,-500.0,0.00052328,31]
[312675561,1706142706557,-956.92,0.00052328,31]
[312675562,1706142706566,-500.0,0.00052328,31]
[312675563,1706142706575,-186.84,0.00052328,31]
[312675564,1706142706587,-500.0,0.00052328,31]
[312675565,1706142706597,-998.0,0.00052328,31]
[312675566,1706142706606,-500.0,0.00052328,31]
[312675567,1706142706615,-682.58,0.00052328,31]
[312675568,1706142706625,-500.0,0.00052328,31]
[312675569,1706142706634,-4855.5,0.00052328,31]
[312675570,1706142706644,-500.0,0.00052328,31]
[312675571,1706142706654,-500.0,0.00052328,31]
[312675572,1706142706664,-500.0,0.00052328,31]
[312675573,1706142706673,-2993.87,0.00052328,31]
[312675574,1706142706683,-588.81128992,0.00052328,31]
[312675575,1706142706694,-500.0,0.00052328,31]
[312675576,1706142706704,-5084.18,0.00052328,5]
[312675577,1706142706713,-1768.63,0.00052328,31]
[312675578,1706142706723,-900.81,0.00052328,31]
[312675579,1706142706732,-531.92,0.00052328,31]
[312675580,1706142706742,-1000.0,0.00052328,7]
[312675581,1706142706752,-558.16994636,0.00052328,31]
[312675582,1706142706762,-500.0,0.00052328,31]
[312675583,1706142706771,-801.09,0.00052328,31]
[312675584,1706142706781,-500.0,0.00052328,31]
[312675585,1706142706791,-500.0,0.00052328,31]
[312675586,1706142706801,-500.0,0.00052328,31]
[312675587,1706142706813,-524.49,0.00052328,31]
[312675588,1706142706823,-500.0,0.00052328,31]
[312675589,1706142706834,-500.0,0.00052328,31]
[312675590,1706142706844,-500.0,0.00052328,31]
[312675591,1706142706855,-544.16,0.00052328,31]
[312675592,1706142706864,-2294.01,0.00052328,31]
[312675593,1706142706875,-500.0,0.00052328,31]
[312675594,1706142706885,-500.0,0.00052328,31]
[312675595,1706142706895,-671.26,0.00052328,31]
[312675596,1706142706905,-500.0,0.00052328,31]
[312675597,1706142706914,-583.12,0.00052328,31]
[312675598,1706142706923,-830.43,0.00052328,31]
[312675599,1706142706933,-652.75,0.00052328,31]
[312675600,1706142706942,-556.8,0.00052328,31]
[312675601,1706142706951,-500.0,0.00052328,31]
[312675602,1706142706961,-2589.2,0.00052328,31]
[312675603,1706142706971,-545.42,0.00052328,31]
[312675604,1706142706981,-541.32,0.00052328,31]
[312675605,1706142706991,-500.0,0.00052328,31]
[312675606,1706142707000,-500.0,0.00052328,31]
[312675607,1706142707010,-545.58,0.00052328,31]
[312675608,1706142707019,-637.26053786,0.00052328,31]
[312675609,1706142707029,-586.96,0.00052328,31]
[312675610,1706142707038,-659.09,0.00052328,31]
[312675611,1706142707047,-2351.31,0.00052328,31]
[312675612,1706142707057,-1206.46,0.00052328,31]
[312675613,1706142707066,-583.57,0.00052328,31]
[312675614,1706142707075,-524.43,0.00052328,31]
[312675615,1706142707085,-966.39,0.00052328,31]
[312675616,1706142707094,-596.67,0.00052328,31]
[312675617,1706142707104,-500.0,0.00052328,31]
[312675618,1706142707114,-612.43,0.00052328,31]
[312675619,1706142707123,-683.16,0.00052328,31]
[312675620,1706142707133,-500.0,0.00052328,31]
[312675621,1706142707142,-710.01,0.00052328,31]
[312675622,1706142707152,-1407.74,0.00052328,31]
[312675623,1706142707161,-500.0,0.00052328,31]
[312675624,1706142707171,-5543.02,0.00052328,31]
[312675625,1706142707181,-500.0,0.00052328,31]
[312675626,1706142707190,-500.0,0.00052328,31]
[312675627,1706142707200,-2066.55,0.00052328,31]
[312675628,1706142707210,-620.76,0.00052328,31]
[312675629,1706142707219,-1016.7,0.00052328,31]
[312675630,1706142707229,-1226.31,0.00052328,31]
[312675631,1706142707238,-500.0,0.00052328,31]
[312675632,1706142707248,-563.82,0.00052328,31]
[312675633,1706142707257,-742.38,0.00052328,31]
[312675634,1706142707267,-552.79,0.00052328,31]
[312675635,1706142707276,-500.0,0.00052328,31]
[312675636,1706142707286,-547.01,0.00052328,31]
[312675637,1706142707295,-500.0,0.00052328,31]
[312675638,1706142707305,-514.66,0.00052328,31]
[312675639,1706142707315,-3013.17,0.00052328,31]
[312675640,1706142707325,-540.87,0.00052328,31]
[312675641,1706142707335,-712.54,0.00052328,31]
[312675642,1706142707345,-2280.94,0.00052328,31]
[312675643,1706142707354,-778.86,0.00052328,31]
[312675644,1706142707363,-950.67,0.00052328,31]
[312675645,1706142707373,-500.0,0.00052328,31]
[312675646,1706142707383,-500.0,0.00052328,31]
[312675647,1706142707392,-500.0,0.00052328,31]
[312675648,1706142707401,-150.78908919,0.00052328,31]
[312675649,1706142707411,-1663.46,0.00052328,31]
[312675650,1706142707420,-500.0,0.00052328,31]
[312675651,1706142707429,-500.0,0.00052328,31]
[312675652,1706142707439,-649.21,0.00052328,31]
[312675653,1706142707448,-787.85,0.00052328,31]
[312675654,1706142707458,-1247.69,0.00052328,31]
[312675655,1706142707468,-1073.61,0.00052328,31]
[312675656,1706142707477,-500.0,0.00052328,31]
[312675657,1706142707486,-500.0,0.00052328,31]
[312675658,1706142707496,-500.0,0.00052328,31]
[312675659,1706142707506,-1265.65,0.00052328,31]
[312675660,1706142707515,-618.27,0.00052328,31]
[312675661,1706142707524,-500.0,0.00052328,31]
[312675662,1706142707534,-500.0,0.00052328,31]
[312675663,1706142707543,-2426.6,0.00052328,31]
[312675664,1706142707553,-3061.04,0.00052328,31]
[312675665,1706142707562,-500.0,0.00052328,31]
[312675666,1706142707572,-1315.35,0.00052328,31]
[312675667,1706142707581,-700.1,0.00052328,31]
[312675668,1706142707592,-660.57,0.00052328,31]
[312675669,1706142707602,-706.67,0.00052328,31]
[312675670,1706142707611,-500.0,0.00052328,31]
[312675671,1706142707797,-500.0,0.00052328,31]
[312675672,1706142707811,-860.59,0.00052328,31]
[312675673,1706142707821,-733.61,0.00052328,31]
[312675674,1706142707831,-1000.0,0.00052328,7]
[312675675,1706142707842,-553.53,0.00052328,31]
[312675676,1706142707853,-605.74,0.00052328,31]
[312675677,1706142707863,-501.79,0.00052328,31]
[312675678,1706142707872,-500.0,0.00052328,31]
[312675679,1706142707882,-644.93,0.00052328,31]
[312675680,1706142707892,-564.19,0.00052328,31]
[312675681,1706142707902,-500.0,0.00052328,31]
[312675682,1706142707912,-740.74,0.00052328,31]
[312675683,1706142707921,-500.0,0.00052328,31]
[312675684,1706142707930,-1295.4,0.00052328,31]
[312675685,1706142707940,-519.74,0.00052328,31]
[312675686,1706142707949,-500.0,0.00052328,31]
[312675687,1706142707959,-500.0,0.00052328,31]
[312675688,1706142707969,-649.59,0.00052328,31]
[312675689,1706142707979,-500.0,0.00052328,31]
[312675690,1706142707989,-537.1,0.00052328,31]
[312675691,1706142707998,-599.29,0.00052328,31]
[312675692,1706142708008,-765.11,0.00052328,31]
[312675693,1706142708018,-3710.41,0.00052328,31]
[312675694,1706142708028,-500.0,0.00052328,31]
[312675695,1706142708037,-500.0,0.00052328,31]
[312675696,1706142708047,-500.0,0.00052328,31]
[312675697,1706142708056,-1451.54,0.00052328,31]
[312675698,1706142708066,-500.0,0.00052328,31]
[312675699,1706142708076,-737.72,0.00052328,31]
[312675700,1706142708086,-658.3,0.00052328,31]
[312675701,1706142708095,-500.0,0.00052328,31]
[312675702,1706142708105,-500.0,0.00052328,31]
[312675703,1706142708115,-500.0,0.00052328,31]
[312675704,1706142708124,-748.16,0.00052328,31]
[312675705,1706142708133,-536.66,0.00052328,31]
[312675706,1706142708143,-500.0,0.00052328,31]
[312675707,1706142708153,-655.7,0.00052328,31]
[312675708,1706142708163,-937.73,0.00052328,2]
[312675709,1706142708173,-678.69,0.00052328,31]
[312675710,1706142708182,-500.0,0.00052328,31]
[312675711,1706142708191,-764.66,0.00052328,31]
[312675712,1706142708201,-500.0,0.00052328,31]
[312675713,1706142708211,-673.27,0.00052328,31]
[312675714,1706142708220,-820.44,0.00052328,31]
[312675715,1706142708230,-797.85,0.00052328,31]
[312675716,1706142708241,-564.04917046,0.00052328,31]
[312675717,1706142708250,-500.0,0.00052328,31]
[312675718,1706142708260,-500.0,0.00052328,31]
[312675719,1706142708270,-500.0,0.00052328,31]
[312675720,1706142708279,-618.86,0.00052328,31]
[312675721,1706142708288,-515.5,0.00052328,31]
[312675722,1706142708297,-500.0,0.00052328,31]
[312675723,1706142708307,-792.67,0.00052328,31]
[312675724,1706142708316,-717.84,0.00052328,31]
[312675725,1706142708325,-1129.79,0.00052328,31]
[312675726,1706142708335,-500.0,0.00052328,31]
[312675727,1706142708344,-500.0,0.00052328,31]
[312675728,1706142708354,-510.96,0.00052328,31]
[312675729,1706142708363,-500.0,0.00052328,31]
[312675730,1706142708373,-600.26,0.00052328,31]
[312675731,1706142708382,-689.9,0.00052328,31]
[312675732,1706142708392,-500.0,0.00052328,31]
[312675733,1706142708402,-594.93,0.00052328,2]
[312675734,1706142708412,-738.6,0.00052328,31]
[312675735,1706142708423,-724.18,0.00052328,31]
[312675736,1706142708432,-757.86,0.00052328,2]
[312675737,1706142708442,-754.82,0.00052328,31]
[312675738,1706142708452,-1187.72,0.00052328,31]
[312675739,1706142708463,-500.0,0.00052328,31]
[312675740,1706142708472,-305.56060898,0.00052328,31]
[312675741,1706142708482,-500.0,0.00052328,31]
[312675742,1706142708491,-1281.32,0.00052328,31]
[312675743,1706142708500,-2728.94,0.00052328,31]
[312675744,1706142708510,-204.0,0.00052329,11]
[312675745,1706142708519,-255.0,0.00052329,9]
[312675746,1706142708529,-150.0,0.0005236,7]
[312675747,1706142708538,-150.0,0.00052365,7]
[312675748,1706142708548,-374.74972718,0.00052375,60]
[312675749,1706142708557,-65809.0,0.0005238,30]
[312675750,1706142708566,-150.0,0.00052381,12]
[312675751,1706142708576,-153.21386405,0.00052382,60]
[312675752,1706142708587,-151.98,0.00052397,2]
[312675753,1706142708596,-150.0,0.00052398,7]
[312675754,1706142708605,-4000.0,0.00052399,120]
[312675755,1706142708615,-210.0,0.000524,40]
[312675756,1706142708625,-302.0,0.00052418,4]
[312675757,1706142708634,-150.0,0.00052422,7]
[312675758,1706142708643,-150.0,0.00052423,7]
[312675759,1706142708653,-164.81285387,0.00052431,60]
[312675760,1706142708663,-487.42349504,0.00052436,60]
[312675761,1706142708673,-150.0,0.00052439,7]
[312675762,1706142708684,-150.0,0.00052441,7]
[312675763,1706142708695,-1273.15306011,0.00052447,120]
[312675764,1706142708705,-150.0,0.00052455,7]
[312675765,1706142708714,-150.0,0.00052456,7]
[312675766,1706142708724,-1414.43386236,0.00052459,60]
[312675767,1706142708733,-150.0,0.00052472,7]
[312675768,1706142708743,-374.74972718,0.00052478,60]
[312675769,1706142708753,-150.37716717,0.0005248,60]
[312675770,1706142708763,-150.0,0.00052487,2]
[312675771,1706142708773,-150.0,0.00052493,7]
[312675772,1706142708782,-151.0,0.00052499,14]
[312675773,1706142708792,-3215.43,0.00052499,31]
[312675774,1706142708802,-670.53,0.00052499,31]
[312675775,1706142708815,-7626.24,0.00052499,31]
[312675776,1706142708825,-3357.15,0.00052499,5]
[312675777,1706142708834,-512.5,0.00052499,31]
[312675778,1706142708846,-501.09,0.00052499,31]
[312675779,1706142708855,-922.59,0.00052499,31]
[312675780,1706142708864,-1246.83,0.00052499,31]
[312675781,1706142708873,-605.47,0.00052499,31]
[312675782,1706142708883,-620.7,0.00052499,120]
[312675783,1706142708892,-635.76,0.00052499,31]
[312675784,1706142708903,-785.77,0.00052499,31]
[312675785,1706142708912,-688.0,0.00052499,31]
[312675786,1706142708923,-719.8,0.00052499,31]
[312675787,1706142708933,-580.99,0.00052499,31]
[312675788,1706142708943,-500.0,0.00052499,31]
[312675789,1706142708953,-500.0,0.00052499,31]
[312675790,1706142708962,-597.78,0.00052499,31]
[312675791,1706142708971,-537.23,0.00052499,31]
[312675792,1706142708981,-612.72,0.00052499,31]
[312675793,1706142708991,-646.07,0.00052499,31]
[312675794,1706142709001,-500.0,0.00052499,31]
[312675795,1706142709010,-500.0,0.00052499,31]
[312675796,1706142709019,-701.09,0.00052499,31]
[312675797,1706142709028,-523.57,0.00052499,31]
[312675798,1706142709038,-500.0,0.00052499,31]
[312675799,1706142709047,-535.75,0.00052499,31]
[312675800,1706142709056,-517.29,0.00052499,31]
[312675801,1706142709066,-571.27,0.00052499,31]
[312675802,1706142709075,-200.0,0.000525,31]
[312675803,1706142709084,-1511.82394253,0.000525,30]
[312675804,1706142709093,-210.0,0.000525,120]
[312675805,1706142709103,-40000.0,0.00052502,120]
[312675806,1706142709113,-150.0,0.00052505,7]
[312675807,1706142709122,-150.0,0.00052509,7]
[312675808,1706142709131,-150.0,0.00052511,7]
[312675809,1706142709141,-150.0,0.00052538,7]
[312675810,1706142709150,-150.0,0.00052545,7]
[312675811,1706142709158,-150.0,0.00052552,7]
[312675812,1706142709168,-150.0,0.0005256,7]
[312675813,1706142709178,-200.0,0.00052575,10]
[312675814,1706142709188,-800.0,0.00052575,10]
[312675815,1706142709197,-150.0,0.00052578,7]
[312675816,1706142709207,-1414.43386236,0.00052579,60]
[312675817,1706142709216,-185.0,0.0005259,2]
[312675818,1706142709226,-392.16327829,0.00052593,60]
[312675819,1706142709235,-3355.88852506,0.00052598,30]
[312675820,1706142709246,-1020.0,0.000526,7]
[312675821,1706142709257,-595.87,0.00052602,31]
[312675822,1706142709267,-500.0,0.00052602,31]
[312675823,1706142709276,-500.0,0.00052602,31]
[312675824,1706142709285,-545.8,0.00052602,31]
[312675825,1706142709294,-500.0,0.00052602,31]
[312675826,1706142709304,-500.0,0.00052602,31]
[312675827,1706142709313,-500.0,0.00052602,31]
[312675828,1706142709323,-170.10015441,0.00052602,31]
[312675829,1706142709333,-500.0,0.00052602,31]
[312675830,1706142709343,-500.0,0.00052602,31]
[312675831,1706142709352,-500.0,0.00052602,31]
[312675832,1706142709361,-500.0,0.00052602,31]
[312675833,1706142709371,-256.64364475,0.00052602,31]
[312675834,1706142709380,-500.0,0.00052602,31]
[312675835,1706142709390,-500.0,0.00052602,31]
[312675836,1706142709400,-500.0,0.00052602,31]
[312675837,1706142709410,-500.0,0.00052602,31]
[312675838,1706142709419,-500.0,0.00052602,31]
[312675839,1706142709429,-500.0,0.00052602,31]
[312675840,1706142709438,-500.0,0.00052602,31]
[312675841,1706142709447,-500.0,0.00052602,20]
[312675842,1706142709458,-500.0,0.00052602,31]
[312675843,1706142709467,-500.0,0.00052602,31]
[312675844,1706142709476,-500.0,0.00052602,14]
[312675845,1706142709485,-500.0,0.00052602,31]
[312675846,1706142709495,-581.44251605,0.00052602,31]
[312675847,1706142709504,-500.0,0.00052602,31]
[312675848,1706142709513,-500.0,0.00052602,31]
[312675849,1706142709522,-1202.05,0.00052602,31]
[312675850,1706142709531,-546.04,0.00052602,31]
[312675851,1706142709540,-500.0,0.00052602,31]
[312675852,1706142709549,-500.0,0.00052602,31]
[312675853,1706142709558,-689.23,0.00052602,2]
[312675854,1706142709568,-839.27,0.00052602,2]
[312675855,1706142709577,-500.0,0.00052602,31]
[312675856,1706142709587,-1213.27,0.00052602,31]
[312675857,1706142709596,-689.7,0.00052602,31]
[312675858,1706142709605,-500.0,0.00052602,31]
[312675859,1706142709615,-688.21,0.00052602,31]
[312675860,1706142709625,-527.15,0.00052602,31]
[312675861,1706142709634,-556.3,0.00052602,31]
[312675862,1706142709643,-976.84,0.00052602,7]
[312675863,1706142709652,-500.0,0.00052602,31]
[312675864,1706142709662,-565.89,0.00052602,31]
[312675865,1706142709671,-500.0,0.00052602,31]
[312675866,1706142709681,-379.04993777,0.00052602,31]
[312675867,1706142709690,-500.0,0.00052602,31]
[312675868,1706142709700,-267.30022324,0.00052602,31]
[312675869,1706142709710,-500.0,0.00052602,31]
[312675870,1706142709719,-417.25627798,0.00052602,31]
[312675871,1706142709729,-500.0,0.00052602,31]
[312675872,1706142709738,-500.0155377,0.00052602,31]
[312675873,1706142709748,-500.0,0.00052602,31]
[312675874,1706142709758,-500.0,0.00052602,31]
[312675875,1706142709767,-500.0,0.00052602,31]
[312675876,1706142709777,-288.40619027,0.00052602,31]
[312675877,1706142709786,-781.79,0.00052602,31]
[312675878,1706142709796,-500.0,0.00052602,31]
[312675879,1706142709807,-500.0,0.00052602,31]
[312675880,1706142709818,-500.0,0.00052602,31]
[312675881,1706142709827,-500.0,0.00052602,31]
[312675882,1706142709836,-1179.82,0.00052602,31]
[312675883,1706142709845,-3431.79,0.00052602,15]
[312675884,1706142709855,-500.0,0.00052602,31]
[312675885,1706142709864,-568.5,0.00052602,31]
[312675886,1706142709874,-375.89908353,0.00052602,31]
[312675887,1706142709883,-500.0,0.00052602,31]
[312675888,1706142709893,-1640.43,0.00052602,31]
[312675889,1706142709903,-500.0,0.00052602,31]
[312675890,1706142709912,-500.0,0.00052602,31]
[312675891,1706142709921,-500.0,0.00052602,31]
[312675892,1706142709931,-599.18,0.00052602,31]
[312675893,1706142709940,-500.0,0.00052602,31]
[312675894,1706142709949,-826.78,0.00052602,120]
[312675895,1706142709959,-3450.92,0.00052602,31]
[312675896,1706142709968,-578.81768764,0.00052602,31]
[312675897,1706142709977,-500.0,0.00052602,31]
[312675898,1706142709987,-500.0,0.00052602,31]
[312675899,1706142709996,-500.0,0.00052602,31]
[312675900,1706142710006,-500.0,0.00052602,31]
[312675901,1706142710015,-549.31,0.00052602,31]
[312675902,1706142710025,-951.5,0.00052602,31]
[312675903,1706142710034,-500.0,0.00052602,31]
[312675904,1706142710043,-500.0,0.00052602,31]
[312675905,1706142710053,-506.14,0.00052602,31]
[312675906,1706142710063,-500.0,0.00052602,31]
[312675907,1706142710072,-500.0,0.00052602,31]
[312675908,1706142710082,-500.0,0.00052602,31]
[312675909,1706142710093,-500.0,0.00052602,31]
[312675910,1706142710102,-500.0,0.00052602,31]
[312675911,1706142710112,-500.0,0.00052602,31]
[312675912,1706142710122,-500.0,0.00052602,31]
[312675913,1706142710133,-500.0,0.00052602,31]
[312675914,1706142710143,-500.0,0.00052602,31]
[312675915,1706142710153,-586.01,0.00052602,31]
[312675916,1706142710163,-610.51,0.00052602,2]
[312675917,1706142710173,-1518.82,0.00052602,2]
[312675918,1706142710182,-787.32,0.00052602,31]
[312675919,1706142710192,-500.0,0.00052602,31]
[312675920,1706142710201,-500.0,0.00052602,31]
[312675921,1706142710211,-491.44759951,0.00052602,31]
[312675922,1706142710221,-696.9,0.00052602,31]
[312675923,1706142710230,-500.0,0.00052602,31]
[312675924,1706142710240,-500.0,0.00052602,120]
[312675925,1706142710250,-839.16,0.00052602,31]
[312675926,1706142710259,-949.05,0.00052602,31]
[312675927,1706142710268,-1090.8,0.00052602,7]
[312675928,1706142710277,-500.0,0.00052602,31]
[312675929,1706142710286,-500.0,0.00052602,31]
[312675930,1706142710295,-500.0,0.00052602,31]
[312675931,1706142710305,-500.0,0.00052602,31]
[312675932,1706142710314,-500.0,0.00052602,31]
[312675933,1706142710323,-500.0,0.00052602,31]
[312675934,1706142710333,-500.0,0.00052602,31]
[312675935,1706142710344,-500.0,0.00052602,31]
[312675936,1706142710353,-500.0,0.00052602,31]
[312675937,1706142710363,-500.0,0.00052602,31]
[312675938,1706142710373,-500.0,0.00052602,31]
[312675939,1706142710383,-612.93766304,0.00052602,31]
[312675940,1706142710393,-500.0,0.00052602,31]
[312675941,1706142710403,-500.0,0.00052602,31]
[312675942,1706142710412,-346.04312957,0.00052602,31]
[312675943,1706142710422,-569.39,0.00052602,31]
[312675944,1706142710432,-500.0,0.00052602,31]
[312675945,1706142710441,-500.0,0.00052602,31]
[312675946,1706142710451,-500.0,0.00052602,31]
[312675947,1706142710460,-500.0,0.00052602,31]
[312675948,1706142710469,-500.0,0.00052602,31]
[312675949,1706142710479,-500.0,0.00052602,31]
[312675950,1706142710488,-618.25473019,0.00052602,31]
[312675951,1706142710497,-500.0,0.00052602,31]
[312675952,1706142710507,-500.0,0.00052602,31]
[312675953,1706142710515,-500.0,0.00052602,31]
[312675954,1706142710525,-1012.49,0.00052602,31]
[312675955,1706142710534,-500.0,0.00052602,31]
[312675956,1706142710544,-500.0,0.00052602,31]
[312675957,1706142710553,-500.0,0.00052602,31]
[312675958,1706142710563,-500.0,0.00052602,31]
[312675959,1706142710573,-799.68,0.00052602,31]
[312675960,1706142710582,-500.0,0.00052602,31]
[312675961,1706142710594,-500.0,0.00052602,31]
[312675962,1706142710603,-500.0,0.00052602,31]
[312675963,1706142710613,-543.8,0.00052602,31]
[312675964,1706142710623,-603.12535196,0.00052602,31]
[312675965,1706142710632,-986.07,0.00052602,31]
[312675966,1706142710642,-500.0,0.00052602,31]
[312675967,1706142710652,-500.0,0.00052602,31]
[312675968,1706142710661,-500.0,0.00052602,31]
[312675969,1706142710671,-500.0,0.00052602,31]
[312675970,1706142710680,-1153.66,0.00052602,31]
[312675971,1706142710690,-516.65,0.00052602,31]
[312675972,1706142710700,-500.0,0.00052602,31]
[312675973,1706142710709,-500.0,0.00052602,31]
[312675974,1706142710889,-1241.77,0.00052602,31]
[312675975,1706142710900,-500.0,0.00052602,31]
[312675976,1706142710910,-500.0,0.00052602,31]
[312675977,1706142710919,-500.0,0.00052602,31]
[312675978,1706142710928,-246.23290823,0.00052602,31]
[312675979,1706142710938,-500.0,0.00052602,31]
[312675980,1706142710948,-500.0,0.00052602,31]
[312675981,1706142710957,-653.39,0.00052602,31]
[312675982,1706142710967,-500.0,0.00052602,31]
[312675983,1706142710977,-836.07,0.00052602,31]
[312675984,1706142710986,-756.21,0.00052602,31]
[312675985,1706142710995,-515.25,0.00052602,31]
[312675986,1706142711005,-1013.31,0.00052602,31]
[312675987,1706142711015,-500.0,0.00052602,31]
[312675988,1706142711024,-528.69,0.00052602,31]
[312675989,1706142711034,-616.32,0.00052602,31]
[312675990,1706142711043,-500.0,0.00052602,31]
[312675991,1706142711053,-491.02590252,0.00052602,31]
[312675992,1706142711062,-956.92,0.00052602,31]
[312675993,1706142711072,-500.0,0.00052602,31]
[312675994,1706142711082,-186.84,0.00052602,31]
[312675995,1706142711092,-500.0,0.00052602,31]
[312675996,1706142711102,-998.0,0.00052602,31]
[312675997,1706142711111,-500.0,0.00052602,31]
[312675998,1706142711121,-682.58,0.00052602,31]
[312675999,1706142711130,-500.0,0.00052602,31]
[312676000,1706142711140,-4855.5,0.00052602,31]
[312676001,1706142711149,-500.0,0.00052602,31]
[312676002,1706142711159,-500.0,0.00052602,31]
[312676003,1706142711168,-500.0,0.00052602,31]
[312676004,1706142711178,-2993.87,0.00052602,31]
[312676005,1706142711188,-500.0,0.00052602,31]
[312676006,1706142711197,-5084.18,0.00052602,5]
[312676007,1706142711207,-1768.63,0.00052602,31]
[312676008,1706142711216,-900.81,0.00052602,31]
[312676009,1706142711225,-531.92,0.00052602,31]
[312676010,1706142711235,-1000.0,0.00052602,7]
[312676011,1706142711245,-500.0,0.00052602,31]
[312676012,1706142711254,-801.09,0.00052602,31]
[312676013,1706142711264,-500.0,0.00052602,31]
[312676014,1706142711274,-500.0,0.00052602,31]
[312676015,1706142711283,-500.0,0.00052602,31]
[312676016,1706142711292,-524.49,0.00052602,31]
[312676017,1706142711302,-500.0,0.00052602,31]
[312676018,1706142711311,-500.0,0.00052602,31]